[Event "GER-ch Youth U16W 2020"]
[Site "Willingen"]
[Date "2020.10.23"]
[Round "6.10"]
[White "Klahold, Rona"]
[Black "Schwegler, Jelena"]
[Result "1-0"]
[ECO "A48"]
[WhiteElo "1551"]
[BlackElo "1539"]
[Annotator "NA"]
[PlyCount "88"]
[EventDate "2020.10.20"]
[EventType "swiss"]
[EventRounds "7"]
[EventCountry "GER"]
[SourceTitle "playchess.com"]
[Source "ChessBase"]
[SourceQuality "1"]
[TimeControl "40/5400+30:1800+30"]

1. d4 {[%emt 0:00:00]} Nf6 {[%emt 0:00:00]} 2. Nf3 {[%emt 0:00:00]} g6 {[%emt 0:00:00]} 3. Bf4 {[%emt 0:00:20]} d5 {[%emt 0:00:00]} 4. e3 {[%emt 0:00:26]} Bg7 {[%emt 0:00:20]} 5. Nbd2 {[%emt 0:00:39]} O-O {[%emt 0:01:14]} 6. Be2 {[%emt 0:01:00]} Bf5 {[%emt 0:07:22]} 7. Ne5 {[%emt 0:03:56]} Nc6 {[%emt 0:02:32]} 8. Nxc6 {[%emt 0:04:12]} bxc6 {[%emt 0:00:13]} 9. g4 {[%emt 0:04:04]} Bd7 {[%emt 0:01:40]} 10. g5 {[%emt 0:02:33]} Ne8 {[%emt 0:03:32]} 11. h4 {[%emt 0:03:18]} Rb8 {[%emt 0:02:29]} 12. Nb3 {[%emt 0:03:08]} Nd6 {[%emt 0:07:58]} 13. h5 {[%emt 0:10:18]} Bf5 {[%emt 0:06:33]} 14. Bd3 {[%emt 0:07:35]} Qc8 {[%emt 0:04:29]} 15. hxg6 {[%emt 0:02:51]} Bxg6 {[%emt 0:03:14]} 16. Ke2 {[%emt 0:12:09]} Qg4+ {[%emt 0:02:43]} 17. Ke1 {[%emt 0:01:40]} Qxd1+ {[%emt 0:01:45]} 18. Kxd1 {[%emt 0:00:36]} Rfe8 {[%emt 0:15:27]} 19. Rb1 {[%emt 0:07:49]} e5 {[%emt 0:01:13]} 20. dxe5 {[%emt 0:02:29]} Bxe5 {[%emt 0:00:11]} 21. Bxe5 {[%emt 0:02:06]} Rxe5 {[%emt 0:00:08]} 22. Rg1 {[%emt 0:00:24]} Nb5 {[%emt 0:01:43]} 23. Kd2 {[%emt 0:03:46]} Nd6 {[%emt 0:03:10]} 24. Nc5 {[%emt 0:01:59]} Re7 {[%emt 0:06:52]} 25. Rg4 {[%emt 0:02:34]} Rbe8 {[%emt 0:02:46]} 26. Ra4 {[%emt 0:02:54]} Bxd3 {[%emt 0:07:54]} 27. cxd3 {[%emt 0:00:39]} Nb5 {[%emt 0:01:39]} 28. d4 {[%emt 0:04:12]} Kg7 {[%emt 0:02:14]} 29. Ra6 {[%emt 0:01:13]} Kg6 {[%emt 0:01:48]} 30. Rg1 {[%emt 0:00:23]} f6 {[%emt 0:01:54]} 31. Rxc6 {[%emt 0:01:43]} Nd6 {[%emt 0:00:26]} 32. gxf6+ {[%emt 0:00:49]} Kxf6 {[%emt 0:00:10]} 33. Na6 {[%emt 0:02:27]} Rc8 {[%emt 0:02:25]} 34. Rgc1 {[%emt 0:00:58]} Kf5 {[%emt 0:01:31]} 35. b3 {[%emt 0:03:23]} Ne8 {[%emt 0:02:11]} 36. f3 {[%emt 0:02:30]} h5 {[%emt 0:00:36]} 37. Rg1 {[%emt 0:01:51]} Nd6 {[%emt 0:01:15]} 38. Nb4 {[%emt 0:01:13]} h4 {[%emt 0:00:47]} 39. Nxd5 {[%emt 0:00:39]} Rh7 {[%emt 0:00:20]} 40. e4+ {[%emt 0:01:05]} Ke6 {[%emt 0:00:44]} 41. Rg6+ {[%emt 0:32:07]} Kd7 {[%emt 0:30:31]} 42. Nf6+ {[%emt 0:01:13]} Kxc6 {[%emt 0:00:20]} 43. Nxh7 {[%emt 0:00:05]} Kd7 {[%emt 0:00:22]} 44. Rh6 {[%emt 0:00:15]} Rb8 {[%emt 0:02:09]} 1-0

[Event "GER-ch Youth U16W 2020"]
[Site "Willingen"]
[Date "2020.10.24"]
[Round "7.3"]
[White "Heutling, Elina"]
[Black "Reuter, Elisa"]
[Result "1-0"]
[ECO "B35"]
[WhiteElo "1873"]
[BlackElo "1860"]
[Annotator "NA RC"]
[PlyCount "131"]
[EventDate "2020.10.20"]
[EventType "swiss"]
[EventRounds "7"]
[EventCountry "GER"]
[SourceTitle "playchess.com"]
[Source "ChessBase"]
[SourceQuality "1"]
[TimeControl "40/5400+30:1800+30"]

1. e4 {Roiz,M} c5 2. Nf3 Nc6 3. d4 cxd4 4. Nxd4 g6 5. Nc3 Bg7 6. Be3 Nf6 7. Bc4 {[%emt 0:01:17]} Qa5 {[%emt 0:00:00]} 8. O-O {[%emt 0:00:46]} O-O {[%emt 0:00:02]} 9. Bb3 {[%emt 0:00:14]} d6 {[%emt 0:00:05]} 10. h3 {[%emt 0:01:08]} Bd7 {[%emt 0:00:04]} 11. Re1 {[%emt 0:00:31]} Rac8 {[%emt 0:00:30]} 12. Nf3 {[%emt 0:01:25] B35: Sicilian: Accelerated Dragon with 5 Nc3: main line.} Qh5 {[%emt 0:06:58]} 13. Qe2 {[%emt 0:01:06]} a6 {[%emt 0:08:04]} 14. Rad1 {[%emt 0:08:08]} Ne5 {[%emt 0:30:03]} 15. Nxe5 {[%emt 0:01:52] [#]} Qxe2 $146 {[%emt 0:01:28]} ({Predecessor:} 15... Qxe5 16. f4 Qa5 17. Qf2 Rxc3 18. Bd2 Rxb3 19. Bxa5 Rxb2 20. e5 Ne8 21. Bd8 Kh8 22. Bxe7 {1-0 (34) Fedorov,A (2602)-Malakhov,V (2670) Warsaw 2005 CBM 108 [Roiz,M]}) 16. Rxe2 {[%emt 0:01:13]} dxe5 {[%emt 0:00:05]} 17. Red2 {[%emt 0:13:28]} Bc6 {[%emt 0:00:57]} 18. f3 {[%emt 0:00:41]} e6 {[%emt 0:05:35]} 19. Na4 {[%emt 0:04:13]} Bxa4 {[%emt 0:03:23]} 20. Bxa4 {[%emt 0:00:07]} b5 {[%emt 0:00:24]} 21. Bb3 {[%emt 0:00:11]} Rfe8 {[%emt 0:00:52]} 22. Bb6 {[%emt 0:07:46]} Bf8 {[%emt 0:00:48]} 23. a4 {[%emt 0:04:53]} Bc5+ {[%emt 0:01:37]} 24. Bxc5 {[%emt 0:00:04]} Rxc5 {[%emt 0:00:06]} 25. Rd6 {[%emt 0:02:42]} bxa4 {[%emt 0:04:24]} 26. Bxa4 {[%emt 0:00:21]} Rb8 {[%emt 0:00:32]} 27. Rd8+ {[%emt 0:06:54]} Rxd8 {[%emt 0:00:08]} 28. Rxd8+ {[%emt 0:00:04]} Kg7 {[%emt 0:00:06]} 29. Ra8 {[%emt 0:07:59]} Ra5 {[%emt 0:01:13]} 30. b3 {[%emt 0:00:34]} Nh5 {[%emt 0:01:35]} 31. Kf2 {[%emt 0:13:13]} Nf4 {[%emt 0:02:05]} 32. h4 {[%emt 0:05:58]} Rc5 {[%emt 0:01:50]} 33. c4 {[%emt 0:01:52]} Nd3+ {[%emt 0:01:05]} 34. Ke2 {[%emt 0:00:13]} Nb4 {[%emt 0:00:15]} 35. Kd2 {[%emt 0:02:23]} Rc7 {[%emt 0:03:21]} 36. Rb8 {[%emt 0:01:54]} a5 {[%emt 0:01:09]} 37. Ra8 {[%emt 0:00:39]} Rc5 {[%emt 0:00:17]} 38. Bb5 {[%emt 0:00:18]} Nc6 {[%emt 0:01:24]} 39. Rc8 {[%emt 0:00:30]} Nd4 {[%emt 0:00:09]} 40. Ra8 {[%emt 0:06:52]} Nxb5 {[%emt 0:00:11]} 41. cxb5 {[%emt 0:30:13]} Rxb5 {[%emt 0:30:02]} 42. Kc3 {[%emt 0:00:21]} Rc5+ {[%emt 0:01:23]} 43. Kb2 {[%emt 0:00:17]} Kf6 {[%emt 0:00:18]} 44. Ra7 {[%emt 0:08:39]} h6 {[%emt 0:01:26]} 45. Rd7 {[%emt 0:00:00]} Kg7 {[%emt 0:00:00]} 46. Rd3 {[%emt 0:00:00]} Kf6 {[%emt 0:00:00]} 47. Rc3 {[%emt 0:00:00] [#]} Rb5 $2 {[%emt 0:00:00]} ({Black should play} 47... Rxc3 $1 $19 48. Kxc3 g5) 48. Ka3 $1 {[%emt 0:00:00]} Rb4 {[%emt 0:00:00]} 49. Rc5 {[%emt 0:00:00]} Rd4 {[%emt 0:00:00]} 50. Rxa5 {[%emt 0:00:00]} Rd2 {[%emt 0:00:00]} 51. b4 {[%emt 0:00:00]} Rxg2 {[%emt 0:00:00]} (51... Ke7 $11 {remains equal.}) 52. b5 {[%emt 0:00:00]} Rg3 $2 {[%emt 0:00:00]} (52... Rg1 $1 $14) 53. b6 {[%emt 0:00:00]} Rxf3+ {[%emt 0:00:00]} 54. Kb4 {[%emt 0:00:00]} Rf1 {[%emt 0:00:00]} 55. Rb5 {[%emt 0:00:00]} Rb1+ {[%emt 0:00:00]} 56. Kc5 {[%emt 0:00:00]} Rc1+ {[%emt 0:00:00]} 57. Kd6 {[%emt 0:00:00]} Rc8 {[%emt 0:00:00]} 58. Rxe5 {[%emt 0:01:10]} Rb8 {[%emt 0:00:00]} 59. Rb5 {[%emt 0:00:08]} g5 {[%emt 0:00:00]} 60. hxg5+ $2 {[%emt 0:02:10]} (60. h5 $18 g4 61. Kc7) 60... hxg5 {[%emt 0:00:00]} 61. Kc7 {[%emt 0:01:27]} Rxb6 {[%emt 0:00:00]} (61... Re8 $11) 62. Kxb6 {[%emt 0:00:13]} e5 {[%emt 0:00:00]} 63. Kc6 {[%emt 0:01:18]} Ke6 {[%emt 0:00:00]} 64. Rd5 {[%emt 0:01:16]} g4 {[%emt 0:00:00]} 65. Rd6+ {[%emt 0:00:29]} Ke7 {[%emt 0:00:00]} 66. Rh6 {[%emt 0:00:10]} 1-0

[Event "GER-ch Youth U16W 2020"]
[Site "Willingen"]
[Date "2020.10.24"]
[Round "7.4"]
[White "Rudolph, Eva"]
[Black "Falke, Ornella"]
[Result "1-0"]
[ECO "B70"]
[WhiteElo "1836"]
[BlackElo "1500"]
[Annotator "NA RC"]
[PlyCount "92"]
[EventDate "2020.10.20"]
[EventType "swiss"]
[EventRounds "7"]
[EventCountry "GER"]
[SourceTitle "playchess.com"]
[Source "ChessBase"]
[SourceQuality "1"]
[TimeControl "40/5400+30:1800+30"]

1. e4 {[%emt 0:00:00]} c5 {[%emt 0:00:00]} 2. Nf3 {[%emt 0:00:00]} d6 {[%emt 0:00:00]} 3. d4 {[%emt 0:02:09]} cxd4 {[%emt 0:00:00]} 4. Nxd4 {[%emt 0:00:29]} Nf6 {[%emt 0:00:14]} 5. Nc3 {[%emt 0:02:45]} g6 {[%emt 0:00:10]} 6. Bc4 {[%emt 0:06:35]} Bg7 {[%emt 0:00:39]} 7. h3 {[%emt 0:05:29]} Nc6 {[%emt 0:01:13]} 8. Be3 {[%emt 0:02:08]} Bd7 {[%emt 0:01:44]} 9. Bb3 {[%emt 0:02:00]} O-O {[%emt 0:03:05]} 10. O-O {[%emt 0:00:30]} Rc8 {[%emt 0:04:01]} 11. Qd2 {[%emt 0:02:49]} a6 {[%emt 0:03:14] B72: Sicilian Dragon: 6 Be3, lines with h3+Bc4 and sidelines.} 12. a4 {[%emt 0:03:01]} Na5 {[%emt 0:02:30]} 13. Rfe1 {[%emt 0:06:55] [#]} Nc4 $146 {[%emt 0:03:18]} ({Predecessor:} 13... Re8 14. Ba2 Nc4 15. Bxc4 Rxc4 16. Qd3 Qc8 17. Kh2 Be6 18. f3 Qc7 19. Kh1 Rc8 20. Bf2 Rb4 21. Nxe6 fxe6 22. Ra2 Nd7 23. Rd1 Kf7 24. Rb1 Bxc3 {0-1 (24) Zemljaric,M-Kelemen,M (2072) Ptuj 2011}) 14. Bxc4 {[%emt 0:02:47]} Rxc4 {[%emt 0:00:09]} 15. a5 {[%emt 0:15:27]} Qc8 {[%emt 0:06:54]} 16. Qd3 {[%emt 0:11:22]} Rd8 {[%emt 0:15:25]} 17. Nb3 {[%emt 0:05:31]} Be6 {[%emt 0:21:02]} 18. Bb6 {[%emt 0:06:51]} Rd7 {[%emt 0:00:43]} 19. Nd4 {[%emt 0:01:55]} Nh5 {[%emt 0:05:17]} 20. Rad1 {[%emt 0:05:56]} Nf4 {[%emt 0:03:45]} 21. Qf3 {[%emt 0:01:57]} Bh6 {[%emt 0:06:57] [#]} 22. Nce2 {[%emt 0:02:45]} (22. h4 $1 $18) 22... Nxe2+ {[%emt 0:02:37]} 23. Rxe2 {[%emt 0:00:31]} d5 {[%emt 0:01:33]} 24. e5 {[%emt 0:00:41]} Bf5 {[%emt 0:02:49]} 25. Nxf5 {[%emt 0:01:50]} gxf5 {[%emt 0:00:10]} 26. Qxf5 {[%emt 0:01:05]} e6 {[%emt 0:00:43]} 27. Qd3 {[%emt 0:02:10]} Re7 {[%emt 0:00:45]} 28. c3 {[%emt 0:01:51]} Re8 {[%emt 0:00:42]} 29. Qg3+ {[%emt 0:01:08]} Kh8 {[%emt 0:01:01]} 30. Be3 {[%emt 0:01:40]} Rg8 {[%emt 0:02:21]} 31. Qf3 {[%emt 0:00:21]} Qf8 {[%emt 0:02:57]} 32. Rd4 {[%emt 0:02:16]} Rc7 {[%emt 0:05:36]} 33. Rh4 {[%emt 0:01:19]} Rg6 {[%emt 0:01:53]} 34. Qh5 {[%emt 0:01:03]} Qg8 {[%emt 0:00:36]} 35. g3 {[%emt 0:01:18]} Bxe3 {[%emt 0:02:05]} 36. Rxe3 {[%emt 0:00:03]} Rg5 {[%emt 0:00:26]} 37. Qf3 {[%emt 0:00:36]} Qg7 {[%emt 0:00:12]} 38. Qe2 {[%emt 0:00:40]} Rc5 {[%emt 0:00:45]} 39. b4 {[%emt 0:00:45]} Rc7 {[%emt 0:00:17]} 40. Kg2 {[%emt 0:00:22]} Qg6 {[%emt 0:01:20]} 41. Rf4 {[%emt 0:09:35]} Qb1 {[%emt 0:05:34]} 42. Rd4 {[%emt 0:02:37]} Kg7 $2 {[%emt 0:07:34]} (42... Rg8 43. Red3 Qc1) 43. h4 {[%emt 0:03:45]} Rg6 {[%emt 0:00:58]} 44. h5 {[%emt 0:01:05]} Rh6 {[%emt 0:06:38]} 45. Qg4+ {[%emt 0:01:25]} Kf8 {[%emt 0:00:14]} 46. Qg5 {[%emt 0:00:54]} Rd7 1-0

[Event "GER-ch Youth U16W 2020"]
[Site "Willingen"]
[Date "2020.10.24"]
[Round "7.5"]
[White "Basovskiy, Jana"]
[Black "Schnabel, Luise"]
[Result "0-1"]
[ECO "B51"]
[WhiteElo "1760"]
[BlackElo "1867"]
[Annotator "NA RC"]
[PlyCount "96"]
[EventDate "2020.10.20"]
[EventType "swiss"]
[EventRounds "7"]
[EventCountry "GER"]
[SourceTitle "playchess.com"]
[Source "ChessBase"]
[SourceQuality "1"]
[TimeControl "40/5400+30:1800+30"]

1. e4 {[%emt 0:00:00]} c5 {[%emt 0:00:00]} 2. Nf3 {[%emt 0:00:00]} d6 {[%emt 0:00:00]} 3. Bb5+ {[%emt 0:00:00]} Nd7 {[%emt 0:02:30]} 4. c3 {[%emt 0:03:46]} Ngf6 {[%emt 0:03:35]} 5. Qe2 {[%emt 0:04:47]} e6 {[%emt 0:02:32]} 6. O-O {[%emt 0:01:24]} a6 {[%emt 0:01:32]} 7. Ba4 {[%emt 0:05:50]} b5 {[%emt 0:02:35]} 8. Bc2 {[%emt 0:00:10]} Bb7 {[%emt 0:02:30]} 9. d3 {[%emt 0:08:00] B51: Sicilian: Moscow Variation (3 Bb5+) without 3...Bd7.} Be7 {[%emt 0:04:42]} 10. h3 {[%emt 0:06:21]} Rc8 {[%emt 0:03:57]} 11. Rd1 {[%emt 0:06:05]} O-O {[%emt 0:04:04] [#]} 12. Bf4 $146 {[%emt 0:07:01]} ({Predecessor:} 12. Nbd2 Qb6 13. Nf1 Bc6 14. Ng3 Qb7 15. Bf4 Rfd8 16. d4 Nf8 17. Re1 Ng6 18. Bg5 Re8 19. Rad1 Rcd8 20. Bc1 Bf8 21. Bg5 Be7 22. Bc1 Bf8 23. Bg5 Be7 {½-½ (23) Trusewicz,J (2052)-Dera,A (2115) Wysowa 2003}) 12... e5 {[%emt 0:07:55]} 13. Bh2 {[%emt 0:03:27]} Qc7 {[%emt 0:03:45]} 14. Nbd2 {[%emt 0:01:44]} Ne8 {[%emt 0:03:29]} 15. Rac1 {[%emt 0:04:48]} g6 {[%emt 0:10:27]} 16. d4 {[%emt 0:05:49]} c4 {[%emt 0:02:53]} 17. Nf1 {[%emt 0:06:44]} f6 {[%emt 0:04:08]} 18. Ne3 {[%emt 0:06:27]} Nb6 {[%emt 0:01:53]} 19. Ne1 {[%emt 0:01:51]} Ng7 {[%emt 0:06:55]} 20. f4 {[%emt 0:02:13]} Ne6 {[%emt 0:04:25]} 21. Qg4 {[%emt 0:03:13]} Nxf4 {[%emt 0:01:31]} 22. Bxf4 {[%emt 0:01:11]} exf4 {[%emt 0:00:04]} 23. Qxf4 {[%emt 0:00:32]} d5 {[%emt 0:02:32]} 24. Qg4 {[%emt 0:02:03]} Kh8 {[%emt 0:05:03]} 25. exd5 {[%emt 0:04:27]} Nxd5 {[%emt 0:01:32]} 26. Nxd5 {[%emt 0:00:02]} Bxd5 {[%emt 0:00:08]} 27. Qe2 {[%emt 0:00:13]} Bd6 {[%emt 0:01:07]} 28. Nf3 {[%emt 0:01:06]} Bf4 {[%emt 0:04:00]} 29. Ra1 {[%emt 0:01:12]} Rce8 {[%emt 0:01:14]} 30. Qf1 {[%emt 0:00:00]} Bg3 {[%emt 0:00:18]} 31. a4 {[%emt 0:01:23]} Re3 {[%emt 0:01:55]} 32. axb5 {[%emt 0:05:00]} axb5 {[%emt 0:00:10]} 33. Kh1 {[%emt 0:01:22]} Qe7 {[%emt 0:05:51]} 34. Ng1 {[%emt 0:02:15]} f5 {[%emt 0:03:22]} 35. Ra5 {[%emt 0:02:40]} Qe8 {[%emt 0:00:49]} 36. Raa1 {[%emt 0:01:50]} f4 {[%emt 0:00:48]} 37. Rd2 {[%emt 0:01:43]} Qe6 {[%emt 0:01:09]} 38. Re2 {[%emt 0:00:56] [#]} Re8 $2 {[%emt 0:02:14]} (38... f3 $1 {[%mdl 512] mates} 39. gxf3 Rfxf3 40. Qxf3 Rxe2 {[%mdl 64] Pin} 41. Ra8+ {[#]} Kg7 $1 {[%mdl 512]} 42. Ra7+ Kh6 $1 {[%mdl 512]} 43. Rxh7+ Kxh7 44. Bxg6+ Qxg6 45. Nxe2 Bxf3+ 46. Kg1 Qb1+ {[%mdl 64] Double Attack} 47. Nc1 Qxc1#) 39. Rxe3 $2 {[%emt 0:00:27]} (39. Bd1) 39... Qxe3 $2 {[%emt 0:00:18]} (39... fxe3 $19 40. Bd1 Bb8) 40. Bd1 {[%emt 0:00:53]} Qd2 {[%emt 0:01:12]} 41. Bf3 {[%emt 0:03:49]} Bxf3 {[%emt 0:04:50]} 42. Nxf3 {[%emt 0:00:16]} (42. Qxf3 $11 Qxb2 43. Qc6 Qxa1 44. Qxe8+ Kg7 45. Qe7+ Kh6 46. Qf8+ Kh5 47. Qc5+ Kh6 48. Qf8+ Kh5 49. Qc5+ Kh6 50. Qf8+) 42... Qxb2 {[%emt 0:03:19]} 43. Rc1 $2 {[%emt 0:03:10]} (43. d5 $17) 43... Re3 {[%emt 0:04:51]} 44. Rb1 {[%emt 0:03:43]} (44. Rd1 $19 Qc2 45. d5) 44... Qc2 {[%emt 0:05:43]} 45. Rxb5 {[%emt 0:02:03]} (45. Qd1 $142 Qxd1+ 46. Rxd1) 45... Rxf3 {[%emt 0:07:24]} 46. Qa1 {[%emt 0:02:47]} Kg7 {[%emt 0:00:33]} 47. Rb7+ {[%emt 0:04:37]} Kh6 {[%emt 0:00:33]} 48. Rb2 {[%emt 0:01:18]} Qxb2 0-1

[Event "GER-ch Youth U16W 2020"]
[Site "Willingen"]
[Date "2020.10.24"]
[Round "7.6"]
[White "Pavlov, Liliane"]
[Black "Yue, Qizhou"]
[Result "0-1"]
[ECO "E11"]
[WhiteElo "1744"]
[BlackElo "1775"]
[Annotator "NA RC"]
[PlyCount "94"]
[EventDate "2020.10.20"]
[EventType "swiss"]
[EventRounds "7"]
[EventCountry "GER"]
[SourceTitle "playchess.com"]
[Source "ChessBase"]
[SourceQuality "1"]
[TimeControl "40/5400+30:1800+30"]

1. d4 {[%emt 0:00:00]} Nf6 {[%emt 0:00:00]} 2. c4 {[%emt 0:00:00]} e6 {[%emt 0:00:00]} 3. Nf3 {[%emt 0:00:00]} Bb4+ {[%emt 0:00:00]} 4. Bd2 {[%emt 0:00:00]} c5 {[%emt 0:00:00]} 5. Bxb4 {[%emt 0:09:16]} cxb4 {[%emt 0:00:10]} 6. g3 {[%emt 0:02:04]} O-O {[%emt 0:01:10]} 7. Bg2 {[%emt 0:00:08]} d6 {[%emt 0:01:30]} 8. O-O {[%emt 0:00:40]} a5 {[%emt 0:01:57]} 9. a3 {[%emt 0:01:32]} Na6 {[%emt 0:02:03]} 10. Nbd2 {[%emt 0:06:49]} Re8 {[%emt 0:01:31]} 11. Qc2 {[%emt 0:01:32]} e5 {[%emt 0:06:26]} 12. e4 {[%emt 0:04:03]} Bg4 {[%emt 0:03:22]} 13. h3 {[%emt 0:00:36]} Bxf3 {[%emt 0:03:48]} 14. Nxf3 Rc8 15. b3 {[%emt 0:19:12]} bxa3 {[%emt 0:22:54]} 16. Rxa3 {[%emt 0:00:39]} Nb4 {[%emt 0:00:49]} 17. Qb1 {[%emt 0:03:59]} b6 {[%emt 0:04:31]} 18. Rd1 {[%emt 0:03:12]} Qe7 {[%emt 0:02:01]} 19. dxe5 {[%emt 0:04:50]} dxe5 {[%emt 0:00:11]} 20. Ra1 {[%emt 0:00:33]} Red8 {[%emt 0:02:20]} 21. Ne1 {[%emt 0:03:16]} Rxd1 {[%emt 0:02:20]} 22. Qxd1 {[%emt 0:00:11]} Rd8 {[%emt 0:00:17]} 23. Qe2 {[%emt 0:00:20]} Qd6 {[%emt 0:04:56]} 24. Nc2 {[%emt 0:04:11]} Nxc2 {[%emt 0:02:43]} 25. Qxc2 {[%emt 0:00:07]} Qc5 {[%emt 0:04:19]} 26. Kh2 {[%emt 0:04:44]} h6 {[%emt 0:02:36]} 27. Qe2 {[%emt 0:02:36]} Rd4 {[%emt 0:06:30]} 28. Qe3 {[%emt 0:04:49]} Qd6 {[%emt 0:06:28]} 29. Rb1 {[%emt 0:00:55]} Rd3 {[%emt 0:00:38]} 30. Qe2 {[%emt 0:00:21]} Rd2 {[%emt 0:03:26]} 31. Qe3 {[%emt 0:01:38]} Rd3 {[%emt 0:02:07]} 32. Qe2 {[%emt 0:00:12]} Qd4 {[%emt 0:00:17]} 33. Qb2 {[%emt 0:01:08]} Qd6 {[%emt 0:05:03]} 34. Qe2 {[%emt 0:03:24]} Rd2 {[%emt 0:04:17]} 35. Qe3 {[%emt 0:00:41]} Nd7 {[%emt 0:00:14]} 36. Qc3 {[%emt 0:02:45]} Rxf2 {[%emt 0:00:43]} 37. Rf1 {[%emt 0:01:15]} Rxf1 {[%emt 0:00:19]} 38. Bxf1 {[%emt 0:00:06]} Qd4 {[%emt 0:00:57]} 39. Qc2 {[%emt 0:02:27]} Nc5 {[%emt 0:00:31]} 40. Bg2 {[%emt 0:00:27]} Kh7 {[%emt 0:03:20]} 41. h4 {[%emt 0:31:01]} Kg8 {[%emt 0:30:42]} 42. Kh3 {[%emt 0:00:37]} Qd3 {[%emt 0:01:30]} 43. Qb2 {[%emt 0:01:34]} Nxe4 {[%emt 0:00:00]} 44. Bxe4 {[%emt 0:00:00]} Qxe4 {[%emt 0:00:00]} 45. Qf2 {[%emt 0:00:00]} Qh1+ {[%emt 0:00:00]} 46. Kg4 {[%emt 0:00:00]} g6 {[%emt 0:00:00]} 47. Qf6 {[%emt 0:00:00]} h5+ 0-1

[Event "GER-ch Youth U16W 2020"]
[Site "Willingen"]
[Date "2020.10.24"]
[Round "7.7"]
[White "Schneider, Katharina"]
[Black "Klahold, Rona"]
[Result "1-0"]
[ECO "C55"]
[WhiteElo "1779"]
[BlackElo "1551"]
[Annotator "NA RC"]
[PlyCount "79"]
[EventDate "2020.10.20"]
[EventType "swiss"]
[EventRounds "7"]
[EventCountry "GER"]
[SourceTitle "playchess.com"]
[Source "ChessBase"]
[SourceQuality "1"]
[TimeControl "40/5400+30:1800+30"]

1. e4 {[%emt 0:00:00]} e5 {[%emt 0:00:00]} 2. Nf3 {[%emt 0:00:00]} Nc6 {[%emt 0:00:00]} 3. d4 {[%emt 0:00:00]} exd4 {[%emt 0:00:00]} 4. Bc4 {[%emt 0:00:00]} Nf6 {[%emt 0:00:06]} 5. O-O {[%emt 0:00:00]} Bc5 {[%emt 0:00:50]} 6. e5 {[%emt 0:02:32]} d5 {[%emt 0:01:01]} 7. exf6 {[%emt 0:03:32]} dxc4 {[%emt 0:00:35]} 8. fxg7 {[%emt 0:00:31]} Rg8 {[%emt 0:01:11]} 9. Re1+ {[%emt 0:05:39]} Be6 {[%emt 0:05:54]} 10. Ng5 {[%emt 0:01:51]} Qf6 {[%emt 0:01:05]} 11. Nxe6 {[%emt 0:01:15]} fxe6 {[%emt 0:00:31]} 12. Qh5+ {[%emt 0:00:24]} Kd7 {[%emt 0:03:50]} 13. Qxc5 {[%emt 0:00:46]} Qxg7 {[%emt 0:00:37]} 14. g3 {[%emt 0:00:15]} Raf8 {[%emt 0:02:33]} 15. Qxc4 {[%emt 0:07:48]} Qf6 {[%emt 0:02:19]} 16. Re2 {[%emt 0:10:59]} e5 {[%emt 0:08:19]} 17. Nd2 {[%emt 0:04:08]} h5 {[%emt 0:04:50]} 18. Ne4 {[%emt 0:02:44]} Qf5 {[%emt 0:12:14]} 19. Nc5+ {[%emt 0:06:11]} Kc8 {[%emt 0:01:15]} 20. Qb5 {[%emt 0:01:11]} Nd8 {[%emt 0:00:55]} 21. Qd3 {[%emt 0:16:49]} Qf6 {[%emt 0:03:10]} 22. Bd2 {[%emt 0:04:02]} h4 {[%emt 0:05:05]} 23. Rae1 {[%emt 0:08:49]} Rf7 {[%emt 0:10:52]} 24. Ne4 {[%emt 0:04:59]} Qf5 {[%emt 0:06:51]} 25. Ng5 {[%emt 0:03:34]} Rxg5 {[%emt 0:04:26]} 26. Bxg5 {[%emt 0:00:08]} Qxg5 {[%emt 0:00:02]} 27. Rxe5 {[%emt 0:00:37]} Qf6 {[%emt 0:01:27]} 28. Qxd4 {[%emt 0:00:45]} b6 {[%emt 0:03:56]} 29. Qg4+ {[%emt 0:01:39]} Kb7 {[%emt 0:01:58]} 30. R1e2 {[%emt 0:01:43]} Rg7 {[%emt 0:03:04]} 31. Qe4+ {[%emt 0:00:31]} Ka6 {[%emt 0:01:59]} 32. Re7 {[%emt 0:04:07]} Qxb2 {[%emt 0:03:43]} 33. Rxg7 {[%emt 0:01:54]} Qxg7 {[%emt 0:01:32]} 34. Qd3+ {[%emt 0:00:25]} Kb7 {[%emt 0:00:50]} 35. Qxd8 {[%emt 0:00:57]} Qa1+ {[%emt 0:00:24]} 36. Kg2 {[%emt 0:00:11]} Qxa2 {[%emt 0:01:25]} 37. Qxh4 {[%emt 0:00:24]} Ka6 {[%emt 0:01:07]} 38. Qe4 {[%emt 0:01:29]} c5 {[%emt 0:01:02]} 39. h4 {[%emt 0:00:36]} Kb5 {[%emt 0:00:24]} 40. c4+ {[%emt 0:01:21]} 1-0